[Event "Festival Groningen-A 2024"]
[Site "Groningen"]
[Date "2024.12.26"]
[Round "5.10"]
[White "Smeets, Kobe"]
[Black "Keuning, Selwin"]
[Result "1-0"]
[ECO "B39"]
[WhiteElo "2349"]
[BlackElo "2180"]
[Annotator "TA"]
[PlyCount "71"]
[EventDate "2024.12.21"]
[EventType "swiss"]
[EventCountry "NED"]
[SourceTitle "playchess.com"]
[Source "ChessBase"]
[SourceQuality "1"]
[TimeControl "40/5400+30:1800+30"]

{[%evp 22,71,47,39,67,32,42,31,30,30,54,22,47,35,37,37,186,191,197,170,185,189,182,172,204,195,191,183,191,190,343,347,341,333,327,307,281,243,225,218,413,413,362,353,340,349,646,624,1454,1452,1150,1093]} 1. e4 {[%emt 0:00:03]} c5 {[%emt 0:00:10]} 2. Nf3 {[%emt 0:00:09]} Nc6 {[%emt 0:00:06]} 3. d4 {[%emt 0:00:12]} cxd4 {[%emt 0:00:08]} 4. Nxd4 {[%emt 0:00:05]} g6 {[%emt 0:00:16]} 5. c4 {[%emt 0:00:10]} Bg7 {[%emt 0:00:07]} 6. Be3 {[%emt 0:00:18]} Nf6 {[%emt 0:00:20]} 7. Nc3 {[%emt 0:00:08]} Ng4 {[%emt 0:00:11]} 8. Qxg4 {[%emt 0:00:08]} Nxd4 {[%emt 0:00:05]} 9. Qd1 {[%emt 0:00:13]} e5 {[%emt 0:00:09]} 10. Bd3 {[%emt 0:09:29]} d6 {[%emt 0:01:27]} 11. O-O {[%emt 0:03:30]} O-O {[%emt 0:01:14]} 12. Nd5 {[%emt 0:00:52]} a6 {[%emt 0:05:37]} 13. Rc1 {[%emt 0:02:02]} Be6 {[%emt 0:04:48]} 14. Qd2 {[%emt 0:02:02]} Bxd5 {[%emt 0:21:16]} 15. cxd5 {[%emt 0:08:33]} Qd7 {[%emt 0:02:20]} 16. Rc3 {[%emt 0:06:06]} Rac8 {[%emt 0:05:09]} 17. Rfc1 {[%emt 0:01:24]} f5 {[%emt 0:04:10]} 18. Bxd4 {[%emt 0:11:18]} exd4 {[%emt 0:01:05]} (18... fxe4 $1 $14 19. Bxe4 (19. Rxc8 Rxc8 20. Bxe4 exd4 $16) 19... exd4 20. Rxc8 Rxc8) 19. Rxc8 $18 {[%emt 0:01:06]} Rxc8 {[%emt 0:00:03] Black is weak on the light squares} 20. exf5 {[%emt 0:04:51]} gxf5 {[%emt 0:05:17]} 21. Rxc8+ {[%emt 0:08:57]} Qxc8 $14 {[%emt 0:00:13][%mdl 4096] Endgame KQB-KQB} 22. Qf4 {[%emt 0:00:05]} Qc5 {[%emt 0:13:21]} 23. Qxf5 {[%emt 0:04:34]} Qc1+ {[%emt 0:02:11]} 24. Bf1 {[%emt 0:00:01]} Be5 {[%emt 0:02:37]} 25. b3 {[%emt 0:07:21]} Bxh2+ $2 {[%emt 0:16:31]} (25... Qc7 26. g3 Qf7 27. Qc8+ Kg7) 26. Kxh2 $18 {[%emt 0:00:01]} Qxf1 {[%emt 0:00:07] KQ-KQ} 27. Qg4+ {[%emt 0:02:46]} Kf7 {[%emt 0:02:06]} 28. Qf4+ {[%emt 0:00:00]} ({Much less strong is} 28. Qxd4 $6 Qe2 29. Qf4+ Ke7 30. Qg5+ Kd7 $16) 28... Kg8 {[%emt 0:02:20]} 29. Qxd4 {[%emt 0:01:59]} Qe2 {[%emt 0:01:35]} 30. a4 {[%emt 0:00:38]} b5 $2 {[%emt 0:01:57]} (30... Kf7 {might work better.} 31. Kg3 Qc2) 31. axb5 {[%emt 0:03:01]} axb5 {[%emt 0:00:44]} 32. Kg3 {[%emt 0:00:01] Hoping for Qg4+.} Qc2 {[%emt 0:01:55]} 33. b4 {[%emt 0:07:59]} Qc1 $2 {[%emt 0:02:06]} (33... Kf7 34. Qf4+ Ke7 35. Qe3+ Kd8 36. Qb6+ Ke7) 34. Qg4+ {[%emt 0:01:27]} Kh8 {[%emt 0:00:03]} 35. Qf4 {[%emt 0:01:01][%cal Rf4f8]} Qc3+ {[%emt 0:00:26]} 36. Kh2 {[%emt 0:00:23]} 1-0

[Event "Festival Groningen-A 2024"]
[Site "Groningen"]
[Date "2024.12.26"]
[Round "5.11"]
[White "Weber, Samuel"]
[Black "Koster, Ramon"]
[Result "0-1"]
[ECO "B90"]
[WhiteElo "2263"]
[BlackElo "2330"]
[Annotator "RC"]
[PlyCount "80"]
[EventDate "2024.12.21"]
[EventType "swiss"]
[EventCountry "NED"]
[SourceTitle "playchess.com"]
[Source "ChessBase"]
[SourceQuality "1"]
[TimeControl "40/5400+30:1800+30"]

1. e4 {[%emt 0:00:33]} c5 {[%emt 0:00:22]} 2. Nf3 {[%emt 0:00:13]} d6 {[%emt 0:00:11]} 3. d4 {[%emt 0:00:17]} cxd4 {[%emt 0:00:12]} 4. Nxd4 {[%emt 0:00:07]} Nf6 {[%emt 0:00:07]} 5. Nc3 {[%emt 0:00:10]} a6 {[%emt 0:00:09]} 6. h3 {[%emt 0:00:32]} e5 {[%emt 0:00:54]} 7. Nde2 {[%emt 0:01:07]} h5 {[%emt 0:01:00]} 8. g3 {[%emt 0:00:07]} Be7 {[%emt 0:01:44]} 9. Bg2 {[%emt 0:00:10]} b5 {[%emt 0:01:36]} 10. Nd5 {[%emt 0:00:36]} Nxd5 {[%emt 0:08:38]} 11. Qxd5 {[%emt 0:00:29]} Ra7 {[%emt 0:00:05]} 12. Be3 {[%emt 0:00:09]} Rb7 {[%emt 0:00:14]} 13. a3 {[%emt 0:00:07]} Nd7 {[%emt 0:00:48]} 14. Nc3 {[%emt 0:00:09]} O-O {[%emt 0:03:10]} 15. Qd2 {[%emt 0:00:39]} Nf6 {[%emt 0:07:19]} 16. O-O {[%emt 0:10:40]} Be6 {[%emt 0:04:47]} 17. f4 {[%emt 0:09:30]} a5 {[%emt 0:06:13]} 18. b4 {[%emt 0:15:36]} Qc8 {[%emt 0:19:38]} 19. f5 {[%emt 0:05:43]} Bc4 {[%emt 0:00:49]} 20. Rf2 {[%emt 0:08:53]} Rd7 {[%emt 0:11:02]} 21. Nd5 {[%emt 0:12:04]} Bxd5 {[%emt 0:04:19]} 22. exd5 {[%emt 0:00:18]} Qa6 {[%emt 0:03:29]} 23. bxa5 {[%emt 0:09:21]} Ra8 {[%emt 0:03:46]} 24. Rb1 {[%emt 0:04:10]} Bd8 {[%emt 0:07:17]} 25. Rb3 {[%emt 0:03:20]} Bxa5 {[%emt 0:01:30]} 26. Qe2 {[%emt 0:02:12]} Bb6 {[%emt 0:00:55]} 27. g4 {[%emt 0:05:55]} Bxe3 {[%emt 0:11:10]} 28. Qxe3 {[%emt 0:04:51]} Qa7 {[%emt 0:00:24]} 29. Qe2 {[%emt 0:02:59]} hxg4 {[%emt 0:01:06]} 30. hxg4 {[%emt 0:00:20]} Qd4 {[%emt 0:00:04]} 31. Rg3 {[%emt 0:01:17]} Ra4 {[%emt 0:01:10]} 32. Qxb5 {[%emt 0:01:07]} Rd8 {[%emt 0:00:46]} 33. c3 {[%emt 0:00:10]} Qa7 {[%emt 0:00:40]} 34. Qe2 {[%emt 0:01:04]} Rb8 {[%emt 0:00:00]} 35. c4 {[%emt 0:02:10]} Rxa3 {[%emt 0:00:30]} 36. Rxa3 {[%emt 0:00:17]} Qxa3 {[%emt 0:00:02]} 37. Kh2 {[%emt 0:01:01]} Qc1 {[%emt 0:00:01]} 38. c5 {[%emt 0:00:29]} Qxc5 {[%emt 0:00:23]} 39. Bf3 {[%emt 0:00:36]} e4 {[%emt 0:00:15]} 40. Bg2 {[%emt 0:00:18]} Qxf2 {[%emt 0:00:26]} 0-1

[Event "Festival Groningen-A 2024"]
[Site "Groningen"]
[Date "2024.12.26"]
[Round "5.12"]
[White "Van Foreest, Machteld"]
[Black "Dolzhykova, Kateryna"]
[Result "1-0"]
[ECO "C11"]
[WhiteElo "2309"]
[BlackElo "2322"]
[Annotator "RC"]
[PlyCount "79"]
[EventDate "2024.12.21"]
[EventType "swiss"]
[EventCountry "NED"]
[SourceTitle "playchess.com"]
[Source "ChessBase"]
[SourceQuality "1"]
[TimeControl "40/5400+30:1800+30"]

1. e4 {[%emt 0:00:10]} e6 {[%emt 0:00:07]} 2. d4 {[%emt 0:02:05]} d5 {[%emt 0:00:07]} 3. Nc3 {[%emt 0:00:59]} Nf6 {[%emt 0:00:15]} 4. e5 {[%emt 0:00:05]} Nfd7 {[%emt 0:00:07]} 5. f4 {[%emt 0:00:47]} c5 {[%emt 0:00:13]} 6. Nf3 {[%emt 0:00:06]} Nc6 {[%emt 0:00:06]} 7. Be3 {[%emt 0:00:10]} Qb6 {[%emt 0:00:30]} 8. Qd2 {[%emt 0:08:42]} Qxb2 {[%emt 0:01:01]} 9. Rb1 {[%emt 0:02:46]} Qa3 {[%emt 0:00:05]} 10. Be2 {[%emt 0:16:18]} a6 {[%emt 0:08:00]} 11. O-O {[%emt 0:02:56]} cxd4 {[%emt 0:06:17]} 12. Nxd4 {[%emt 0:01:12]} Nxd4 {[%emt 0:00:05]} 13. Bxd4 {[%emt 0:00:11]} Bc5 {[%emt 0:00:03]} 14. Bxc5 {[%emt 0:02:01]} Qxc5+ {[%emt 0:03:12]} 15. Kh1 {[%emt 0:00:52]} O-O {[%emt 0:00:08]} 16. Bd3 {[%emt 0:02:56]} Qa5 {[%emt 0:06:46]} 17. Qe1 {[%emt 0:12:50]} Re8 {[%emt 0:16:19]} 18. Rf3 {[%emt 0:05:26]} Nf8 {[%emt 0:06:23]} 19. Qh4 {[%emt 0:03:38]} Qd8 {[%emt 0:00:59]} 20. Qh5 {[%emt 0:00:50]} g6 {[%emt 0:01:30]} 21. Qh6 {[%emt 0:00:17]} f5 {[%emt 0:00:26]} 22. exf6 {[%emt 0:02:16]} Qxf6 {[%emt 0:00:11]} 23. Nd1 {[%emt 0:00:12]} Qg7 {[%emt 0:08:17]} 24. Qh4 {[%emt 0:02:04]} e5 {[%emt 0:03:33]} 25. fxe5 {[%emt 0:09:45]} Rxe5 {[%emt 0:00:43]} 26. Ne3 {[%emt 0:00:40]} Be6 {[%emt 0:06:10]} 27. a4 {[%emt 0:01:38]} b5 {[%emt 0:07:12]} 28. axb5 {[%emt 0:00:45]} axb5 {[%emt 0:00:01]} 29. Qd4 {[%emt 0:05:16]} Ra4 {[%emt 0:01:41]} 30. Qc5 {[%emt 0:00:56]} Bf7 {[%emt 0:03:24]} 31. Rbf1 {[%emt 0:01:32]} d4 {[%emt 0:01:01]} 32. Qc7 {[%emt 0:00:08]} Ra1 {[%emt 0:05:41]} 33. Rxa1 {[%emt 0:01:24]} Rxe3 {[%emt 0:00:07]} 34. Rf2 {[%emt 0:01:47]} Be8 {[%emt 0:03:13]} 35. Qd6 {[%emt 0:02:15]} Ne6 {[%emt 0:03:07]} 36. Raf1 {[%emt 0:02:59]} Qc7 {[%emt 0:02:46]} 37. Qb4 {[%emt 0:04:07]} Bc6 {[%emt 0:05:12]} 38. Bxb5 {[%emt 0:02:17]} Qb8 {[%emt 0:02:14]} 39. Rf8+ {[%emt 0:01:42]} Nxf8 {[%emt 0:01:15]} 40. Bc4+ {[%emt 0:00:05]} 1-0

[Event "Festival Groningen-A 2024"]
[Site "Groningen"]
[Date "2024.12.26"]
[Round "5.13"]
[White "De Boer, Eelke"]
[Black "Nicolai, Amir"]
[Result "1-0"]
[ECO "B31"]
[WhiteElo "2426"]
[BlackElo "2156"]
[Annotator "TA"]
[PlyCount "101"]
[EventDate "2024.12.21"]
[EventType "swiss"]
[EventCountry "NED"]
[SourceTitle "playchess.com"]
[Source "ChessBase"]
[SourceQuality "1"]
[TimeControl "40/5400+30:1800+30"]

{[%evp 11,101,22,24,19,24,26,27,29,37,34,52,58,52,42,42,35,26,5,13,2,129,67,60,80,64,62,70,68,81,68,88,88,75,17,62,23,35,24,32,19,10,10,64,35,64,64,64,53,67,67,60,0,0,0,0,0,17,0,8,8,8,0,0,0,0,-68,0,0,64,57,352,368,516,502,447,447,437,318,415,427,501,491,466,431,2258,2610,29973,29974,29984,29985,29980,1465]} 1. e4 {[%emt 0:03:35]} c5 {[%emt 0:00:09]} 2. Nf3 {[%emt 0:00:07]} Nc6 {[%emt 0:00:03]} 3. Bb5 {[%emt 0:00:24]} g6 {[%emt 0:00:08]} 4. O-O {[%emt 0:00:07]} Bg7 {[%emt 0:00:04]} 5. Bxc6 {[%emt 0:00:23]} dxc6 {[%emt 0:00:06]} 6. d3 {[%emt 0:00:17]} Nf6 {[%emt 0:00:09]} 7. a4 {[%emt 0:00:48]} a5 {[%emt 0:02:03]} 8. Be3 {[%emt 0:00:09]} Nd7 {[%emt 0:04:07]} 9. Qc1 {[%emt 0:00:28] White has an edge.} h6 {[%emt 0:00:34]} 10. Nfd2 {[%emt 0:02:34]} Qc7 {[%emt 0:11:32]} 11. f4 {[%emt 0:01:46]} g5 {[%emt 0:05:29]} 12. Nf3 {[%emt 0:05:53]} (12. fxg5 $2 hxg5 13. g3 Ne5 $19) 12... Nf8 {[%emt 0:04:48]} 13. f5 {[%emt 0:19:21]} g4 {[%emt 0:05:01]} 14. Ne1 {[%emt 0:04:46][%cal Ob1d2]} Be5 {[%emt 0:05:06]} 15. Bf4 {[%emt 0:01:17]} (15. Bxh6 Bxh2+ 16. Kf2 e6 $19) 15... Nh7 {[%emt 0:00:51]} (15... b6 $11) 16. Na3 {[%emt 0:02:26]} (16. Bxh6 Bxh2+ 17. Kf2 Nf6 $17) (16. Bxe5 $16 Qxe5 17. Na3 (17. Qxh6 $2 Qxb2 18. Ra3 Nf8 $19)) 16... Bxf4 $14 {[%emt 0:05:22]} 17. Qxf4 {[%emt 0:00:59]} Qxf4 {[%emt 0:00:52]} 18. Rxf4 {[%emt 0:00:04]} h5 {[%emt 0:04:10]} 19. Nc4 {[%emt 0:00:19]} Kd8 {[%emt 0:01:07]} 20. Ne5 {[%emt 0:14:25]} Rf8 {[%emt 0:07:18]} 21. h3 {[%emt 0:01:13]} gxh3 {[%emt 0:00:47]} 22. g3 {[%emt 0:01:30]} (22. Rh4 $16) 22... Bd7 {[%emt 0:10:46]} 23. Rh4 {[%emt 0:03:01] White has more active pieces. The black rooks are passive.} Nf6 $1 {[%emt 0:00:13]} 24. Rxh3 {[%emt 0:00:51]} e6 $1 {[%emt 0:00:29]} 25. Nxd7 {[%emt 0:11:26]} Kxd7 {[%emt 0:00:19]} 26. fxe6+ {[%emt 0:00:19]} Kxe6 {[%emt 0:03:53]} ({Better is} 26... fxe6 $11 27. Ng2 Rh8) 27. Ng2 {[%emt 0:00:28]} Rg8 {[%emt 0:05:42][%cal Oc5c4]} 28. b3 {[%emt 0:09:11]} Rg5 {[%emt 0:01:14]} 29. Kf2 {[%emt 0:02:14]} Rag8 {[%emt 0:03:48]} 30. Kf3 {[%emt 0:00:24]} Ke5 {[%emt 0:04:18]} 31. Ne3 {[%emt 0:01:32]} (31. Nf4 $14) 31... Kd4 $1 $11 {[%emt 0:02:13]} 32. Nc4 {[%emt 0:01:25]} Kc3 {[%emt 0:04:42]} 33. Nxa5 {[%emt 0:04:22]} b6 {[%emt 0:04:41]} 34. Nc4 {[%emt 0:00:56]} b5 {[%emt 0:02:08]} 35. axb5 {[%emt 0:01:20]} cxb5 {[%emt 0:00:08]} 36. Ne3 {[%emt 0:00:04] Black must now prevent Ra2.} Ng4 {[%emt 0:00:49]} 37. Nf5 {[%emt 0:06:03]} Kxc2 {[%emt 0:01:02][%cal Og8d8]} 38. Ke2 {[%emt 0:01:49]} (38. Ne7 $11 Rd8 (38... Kb2 39. Rhh1 $11) 39. Nd5) 38... Ne5 {[%emt 0:02:39]} (38... Kxb3 39. Rb1+ Ka4 40. Rhh1 Rxf5 41. exf5 $16) (38... Re8 $1 $15 39. Nd6 Re6 40. Nxb5 Rf5 (40... Kxb3 $2 41. Rhh1 $18) 41. Ra2+ Kxb3) 39. Ne3+ {[%emt 0:00:02]} Kxb3 {[%emt 0:00:38]} (39... Kb2 $11 40. Rhh1 Rxg3) 40. Rhh1 $1 $14 {[%emt 0:00:10] [#] Intending Rhb1+ and mate.} Nxd3 $2 {[%emt 0:00:27][%mdl 8192] Black cannot hold the game after this.} 41. Kxd3 $18 {[%emt 0:30:49][%cal Rh1b1]} c4+ {[%emt 0:01:02]} (41... Rd8+ $142 42. Ke2 Rb8 43. Rhb1+ Kc3) 42. Kd4 {[%emt 0:00:00][%cal Rh1b1]} Rd8+ {[%emt 0:01:01]} 43. Nd5 {[%emt 0:00:00]} Rxg3 {[%emt 0:04:45]} 44. Rhb1+ {[%emt 0:00:00]} (44. Rxh5 Rd3+ 45. Kc5 Rc8+ 46. Kxb5 Kb2 $14) 44... Kc2 {[%emt 0:00:14]} 45. Rxb5 {[%emt 0:00:00]} Rb3 {[%emt 0:02:39]} 46. Rc5 {[%emt 0:00:00]} (46. Kxc4 Rxb5 47. Kxb5 Re8 $18) 46... c3 {[%emt 0:08:39]} 47. Ra2+ {[%emt 0:00:00]} Kb1 {[%emt 0:02:11]} (47... Kd1 $142 48. Rxc3 Rxc3 49. Kxc3 h4) 48. Rf2 {[%emt 0:00:00]} f5 {[%emt 0:01:24]} 49. exf5 {[%emt 0:00:00] White mates.} Rb2 {[%emt 0:02:10]} 50. Rf1+ {[%emt 0:00:00]} Ka2 {[%emt 0:00:10]} 51. Kc4 {[%emt 0:00:00] Weighted Error Value: White=0.13 (very precise) /Black=0.42.  Loses game:     	---       	Black=1      Mistake:       	White=4     	Black=6      Inaccurate:     	White=2     	Black=4      OK:         	White=10    	Black=11     Best:        	White=3     	Black=3      Strong:       	White=1     	Black=3} (51. Kxc3 $142 Rb3+ 52. Kc4 Rdb8 53. Ra5+ Kb2 54. Rf2+ Kb1 55. f6 (55. Nc3+ Rxc3+ 56. Kxc3 Rc8+ 57. Kd4 Rd8+ 58. Rd5 Rg8 59. f6 Rg4+ 60. Kc3 Rg3+ 61. Rd3 Rg1) 55... Rh3 56. Nc3+ Rxc3+ 57. Kxc3) 1-0

[Event "Festival Groningen-A 2024"]
[Site "Groningen"]
[Date "2024.12.26"]
[Round "5.14"]
[White "Stijve, Theo"]
[Black "Vijayakumar, Rishi"]
[Result "1/2-1/2"]
[ECO "C78"]
[WhiteElo "2396"]
[BlackElo "2204"]
[Annotator "TA"]
[PlyCount "76"]
[EventDate "2024.12.21"]
[EventType "swiss"]
[EventCountry "NED"]
[SourceTitle "playchess.com"]
[Source "ChessBase"]
[SourceQuality "1"]
[TimeControl "40/5400+30:1800+30"]

{[%evp 12,76,43,44,50,30,31,25,24,25,34,15,0,10,7,0,5,0,0,0,0,0,0,0,0,0,0,0,0,0,0,0,0,0,12,0,0,0,0,0,0,0,0,0,0,0,0,0,0,-65,-91,-231,-184,-190,-190,-195,-190,-185,-189,-251,-251,-257,-258,-242,-201,-278,-272]} 1. e4 {[%emt 0:00:03]} e5 {[%emt 0:00:19]} 2. Nf3 {[%emt 0:00:07]} Nc6 {[%emt 0:00:06]} 3. Bb5 {[%emt 0:00:08]} a6 {[%emt 0:00:11]} 4. Ba4 {[%emt 0:00:07]} Nf6 {[%emt 0:00:41]} 5. O-O {[%emt 0:00:11]} b5 {[%emt 0:00:31]} 6. Bb3 {[%emt 0:00:08]} Bc5 {[%emt 0:00:04]} 7. a4 {[%emt 0:00:09]} Rb8 {[%emt 0:00:12]} 8. Nxe5 {[%emt 0:00:09]} Nxe5 {[%emt 0:00:17]} 9. d4 {[%emt 0:00:07]} Bxd4 $1 {[%emt 0:00:20]} 10. Qxd4 {[%emt 0:00:08]} d6 $1 {[%emt 0:00:13]} 11. f4 {[%emt 0:00:09]} Nc6 {[%emt 0:00:12][%cal Be5c6,Bc6e7,Be7d5][%mdl 32]} 12. Qc3 {[%emt 0:00:08]} Ne7 {[%emt 0:01:03]} 13. axb5 {[%emt 0:00:09]} axb5 {[%emt 0:00:14][%cal Oe8g8]} 14. Ra7 {[%emt 0:00:10]} c5 {[%emt 0:01:12][%cal Oc5c4]} 15. e5 {[%emt 0:00:11]} Nfd5 $1 {[%emt 0:00:21]} 16. Bxd5 {[%emt 0:00:20]} Nxd5 {[%emt 0:00:04]} 17. Qf3 {[%emt 0:00:15]} Qb6 {[%emt 0:00:49]} 18. Rxf7 {[%emt 0:00:13]} Kxf7 {[%emt 0:01:34]} 19. Qxd5+ {[%emt 0:00:09]} Be6 {[%emt 0:00:05]} 20. Qd1 {[%emt 0:00:15]} Bf5 {[%emt 0:03:42]} 21. Qd5+ {[%emt 0:00:19]} Be6 {[%emt 0:00:09]} 22. Qd1 {[%emt 0:00:07]} Bf5 {[%emt 0:00:21]} 23. Qh5+ {[%emt 0:00:08][%mdl 1024] White has compensation.} g6 {[%emt 0:00:43]} 24. Qh6 {[%emt 0:00:10]} c4+ {[%emt 0:28:50]} (24... Bxc2 25. f5 Bxf5 (25... Bxb1 26. fxg6+ Ke6 27. gxh7+ Kd5 28. Rd1+ $18) 26. Rxf5+ Ke8 (26... gxf5 $2 27. Qf6+ Ke8 28. Qe6+ Kd8 29. exd6 $18) 27. Nc3 $18) 25. Kh1 {[%emt 0:00:17]} Qd8 {[%emt 0:00:14]} (25... Bxc2 26. f5 Bxf5 (26... Bxb1 $2 27. e6+ Kf6 28. Re1 $18) 27. Rxf5+ Kg8 (27... gxf5 $2 28. Qf6+ Ke8 29. Qe6+ Kd8 30. exd6 $18) 28. e6 $18) 26. g4 {[%emt 0:00:17]} Be4+ {[%emt 0:04:21]} (26... Bxc2 27. f5 Kg8 (27... Bxb1 $2 28. fxg6+ Ke6 29. g7+ Bg6 30. gxh8=R $18) (27... Be4+ $2 28. Kg1 $16) 28. e6 $16) 27. Kg1 {[%emt 0:00:44] Strongly threatening f5.} Qf8 {[%emt 0:02:06]} 28. Qh3 $1 {[%emt 0:01:04]} h5 {[%emt 0:20:01] Threatens to win with ...Qc8.} 29. Qe3 $1 {[%emt 0:09:44]} Bxc2 {[%emt 0:16:01]} (29... d5 $6 30. Nc3 Qe7 31. f5 $18) 30. f5 {[%emt 0:11:17]} gxf5 $15 {[%emt 0:04:15][%cal Bg6f5,Bf5f4][%mdl 32]} 31. Nc3 {[%emt 0:14:13]} (31. e6+ $17 Kg8 32. e7) 31... dxe5 {[%emt 0:05:50]} 32. Ne4 {[%emt 0:17:36] [#] Dodges Qd6} f4 $1 {[%emt 0:04:58]} (32... hxg4 $2 33. Rxf5+ Ke6 34. Rxf8 Bxe4 35. Rxb8 Rxb8 36. Qxe4 $18) (32... Bxe4 33. Qxe4 Qd6 (33... Qc5+ 34. Be3 $11) 34. Qxf5+ Ke8 35. Be3 $17) 33. Ng5+ {[%emt 0:01:16] [#]} Kg6 $1 {[%emt 0:02:13]} (33... Kf6 34. Qc3 Kxg5 35. Qxe5+ Kg6 (35... Kxg4 36. Rxf4+) 36. Bxf4 $17) 34. Qxe5 {[%emt 0:26:34]} Qf6 {[%emt 0:00:09] Prevents Ne6} (34... hxg4 $2 35. Ne6 (35. Rxf4 Bf5 $14) (35. Bxf4 Re8 $19) 35... Qf6 36. Nxf4+ (36. Bxf4 $2 {perishes.} Rbe8 $19) 36... Kf7 37. Nh5 $18 (37. Qc7+ Kg8 $18)) 35. gxh5+ {[%emt 0:12:44]} (35. Nf7 $142) 35... Rxh5 $19 {[%emt 0:00:36]} 36. Qxf6+ {[%emt 0:00:24]} Kxf6 {[%emt 0:00:01]} 37. Rxf4+ {[%emt 0:00:23]} Bf5 {[%emt 0:02:45]} ({Stronger than} 37... Kxg5 38. Rf8+ (38. Rxc4+ Kf6 $17) 38... Kg4 39. Rxb8 $11) 38. Ne4+ {[%emt 0:01:22]} Ke6 {[%emt 0:01:09]} 1/2-1/2

[Event "Festival Groningen-A 2024"]
[Site "Groningen"]
[Date "2024.12.26"]
[Round "5.15"]
[White "Kollen, Zyon"]
[Black "Mostertman, Milan"]
[Result "1-0"]
[ECO "C48"]
[WhiteElo "2344"]
[BlackElo "2244"]
[Annotator "TA"]
[PlyCount "113"]
[EventDate "2024.12.21"]
[EventType "swiss"]
[EventCountry "NED"]
[SourceTitle "playchess.com"]
[Source "ChessBase"]
[SourceQuality "1"]
[TimeControl "40/5400+30:1800+30"]

{[%evp 9,113,0,33,0,0,0,4,-31,-27,-26,-27,-26,-23,-28,0,0,0,0,0,0,14,1,0,0,17,21,23,24,31,0,20,0,64,61,63,60,74,62,59,76,68,64,60,38,44,32,36,36,32,31,35,8,8,8,16,8,28,0,30,28,72,66,70,76,71,0,60,0,0,0,0,0,0,0,99,103,92,92,125,119,157,91,89,7,478,472,375,454,434,435,367,337,903,792,29974,29975,29969,29968,29979,29980,29991,29992,29992,29993,29993,29993]} 1. e4 {[%emt 0:00:03]} e5 {[%emt 0:00:05]} 2. Nf3 {[%emt 0:00:06]} Nc6 {[%emt 0:00:06]} 3. Bb5 {[%emt 0:00:19][%cal Bf1b5,Bb5a4,Ba4b3][%mdl 32]} Nf6 {[%emt 0:00:07]} 4. d3 {[%emt 0:01:22]} Bc5 {[%emt 0:00:06]} 5. Nc3 {[%emt 0:07:11]} a6 {[%emt 0:09:04]} 6. Ba4 {[%emt 0:06:19]} d6 {[%emt 0:00:19]} 7. Bg5 {[%emt 0:10:13]} h6 {[%emt 0:05:49]} 8. Be3 {[%emt 0:03:09]} b5 {[%emt 0:07:03] and ...Bxe3 should not be overlooked} 9. Bb3 {[%emt 0:01:30]} Bxe3 {[%emt 0:15:31]} 10. fxe3 {[%emt 0:00:09]} Na5 {[%emt 0:00:06]} 11. Nd5 {[%emt 0:03:38]} Bb7 {[%emt 0:09:38]} 12. Nxf6+ {[%emt 0:04:00]} Qxf6 {[%emt 0:00:04]} 13. O-O {[%emt 0:00:36]} Nxb3 {[%emt 0:00:05]} 14. axb3 {[%emt 0:00:44]} Qe6 {[%emt 0:00:04]} 15. Qe1 {[%emt 0:04:18]} O-O {[%emt 0:03:30]} 16. Nh4 {[%emt 0:02:57]} d5 {[%emt 0:03:05]} 17. exd5 {[%emt 0:02:54]} Qxd5 {[%emt 0:01:00]} 18. Qg3 {[%emt 0:02:20]} Bc8 {[%emt 0:00:17][%cal Bb7c8,Bc8e6,Be6d5][%mdl 32]} 19. Rf2 {[%emt 0:13:08]} (19. Qf3 {simplifies} Qxf3 20. Nxf3 e4 21. dxe4 Bb7 22. e5) 19... Be6 {[%emt 0:13:21]} 20. Raf1 {[%emt 0:05:37]} e4 {[%emt 0:06:31]} (20... Qc5 $11) 21. d4 $1 $14 {[%emt 0:02:02][%cal Oh4f5]} (21. Qxc7 exd3 22. Nf5 Bxf5 23. Rxf5 Qe6 24. cxd3 Qxe3+ (24... Qxb3 25. h3 $15) 25. Kh1 Qxd3 $17) 21... Qg5 {[%emt 0:00:21]} 22. Nf5 {[%emt 0:04:36]} g6 {[%emt 0:01:39][%cal Re6f5]} 23. h4 {[%emt 0:03:32][%cal Bh2h4,Bh4h5][%mdl 32]} Qxg3 {[%emt 0:03:22]} 24. Nxg3 {[%emt 0:00:01][%cal Bf5g3,Bg3e2,Be2f4][%mdl 32]} Bd5 {[%emt 0:01:07]} 25. h5 {[%emt 0:03:31]} a5 {[%emt 0:00:05]} 26. Rf6 {[%emt 0:02:00]} Kg7 {[%emt 0:01:16]} 27. Ne2 {[%emt 0:01:19]} b4 {[%emt 0:02:47] Repels Nc3} 28. hxg6 {[%emt 0:03:24]} fxg6 {[%emt 0:00:06]} 29. Rxf8 {[%emt 0:00:03]} Rxf8 {[%emt 0:00:03][%mdl 4096] Endgame KRB-KRN} 30. Nf4 {[%emt 0:00:06]} Bf7 {[%emt 0:05:40]} 31. Ra1 {[%emt 0:01:12]} Ra8 {[%emt 0:01:05]} 32. Ne2 {[%emt 0:00:27]} Ra6 {[%emt 0:04:52]} 33. Kf2 {[%emt 0:01:25]} Kf6 {[%emt 0:02:31]} 34. c4 {[%emt 0:01:55]} g5 {[%emt 0:01:58]} 35. d5 $1 {[%emt 0:01:50]} Be8 {[%emt 0:01:23]} 36. Nd4 {[%emt 0:00:48]} Bd7 {[%emt 0:00:26] [#] Dodges Ne6} 37. Kg3 {[%emt 0:03:04]} (37. c5 $1 $16 {[%cal Rc5c6] And now c6 would win.} Bg4 38. c6) 37... h5 {[%emt 0:00:34]} ({Black should play} 37... Ke5 $11) 38. Rf1+ {[%emt 0:00:47]} ({Better is} 38. c5 $1 $14) 38... Kg7 {[%emt 0:02:16]} 39. Nf5+ {[%emt 0:03:09]} Bxf5 {[%emt 0:01:13]} 40. Rxf5 $11 {[%emt 0:00:01] KR-KR} Kg6 $1 {[%emt 0:01:04]} 41. Re5 {[%emt 0:05:01]} a4 {[%emt 0:00:00]} (41... Rf6 $11 {keeps the balance.}) 42. bxa4 $16 {[%emt 0:00:20]} (42. Rxe4 $2 a3 43. bxa3 bxa3 $19) 42... Rxa4 {[%emt 0:00:00]} 43. Rxe4 {[%emt 0:02:13]} Ra2 {[%emt 0:03:53]} 44. Re6+ {[%emt 0:08:29]} Kf7 {[%emt 0:01:12] [#]} 45. Rc6 {[%emt 0:04:19]} (45. b3 $142 $1) 45... Rxb2 {[%emt 0:00:05]} 46. e4 {[%emt 0:00:22]} (46. Rxc7+ Kf6 $11) (46. c5 $16 b3 (46... h4+ $2 47. Kf3 $18) 47. Rxc7+ Kf6 48. d6) 46... Rc2 $2 {[%emt 0:06:04][%mdl 8192]} (46... b3 $11 {and Black is okay.}) 47. e5 $18 {[%emt 0:05:07][%cal Be4e5,Be5e6,Be6e7][%mdl 32]} ({Weaker is} 47. Rxc7+ Kf6 $11) 47... b3 {[%emt 0:00:15][%cal Bb4b3,Bb3b2][%mdl 32]} 48. Rxc7+ {[%emt 0:00:21]} Kg6 {[%emt 0:02:27]} 49. e6 {[%emt 0:04:17]} b2 {[%emt 0:00:42]} 50. Rb7 {[%emt 0:00:10]} Kf6 $2 {[%emt 0:01:56]} (50... h4+ 51. Kh3 Rd2) 51. e7 {[%emt 0:02:04]} Kf7 {[%emt 0:09:43]} 52. d6 {[%emt 0:00:16]} h4+ {[%emt 0:00:31]} 53. Kf3 {[%emt 0:01:38]} g4+ {[%emt 0:02:01]} 54. Ke3 {[%emt 0:02:10]} Rxg2 {[%emt 0:07:35]} 55. Rb8 {[%emt 0:00:23]} Rg3+ {[%emt 0:00:05]} 56. Kd4 {[%emt 0:00:27]} Rd3+ {[%emt 0:00:52]} 57. Kxd3 {[%emt 0:00:07]} 1-0